[Event "Seniors-LEM-65 Sachsen-Anhalt 2024"]
[Site "Magdeburg"]
[Date "2024.07.07"]
[Round "7.15"]
[White "Onasch, Gunnar"]
[Black "Andersen, Knut"]
[Result "1-0"]
[ECO "D04"]
[WhiteElo "1949"]
[BlackElo "2104"]
[Annotator "RC"]
[PlyCount "69"]
[EventDate "2024.06.25"]
[EventType "swiss"]
[EventCountry "GER"]
[SourceTitle "playchess.com"]
[Source "ChessBase"]
[SourceQuality "1"]
[TimeControl "40/5400+30:1800+30"]

1. Nf3 {[%emt 0:00:11]} c5 {[%emt 0:00:13]} 2. b3 {[%emt 0:00:07]} Nc6 {[%emt 0:00:34]} 3. Bb2 {[%emt 0:00:06]} d5 {[%emt 0:00:32]} 4. e3 {[%emt 0:00:08]} Bg4 {[%emt 0:00:45]} 5. d4 {[%emt 0:00:39]} cxd4 {[%emt 0:00:28]} 6. exd4 {[%emt 0:00:21]} Nf6 {[%emt 0:01:24]} 7. Be2 {[%emt 0:02:41]} e6 {[%emt 0:00:31]} 8. O-O {[%emt 0:00:40]} Bd6 {[%emt 0:00:33]} 9. c4 {[%emt 0:04:52]} O-O {[%emt 0:02:41]} 10. h3 {[%emt 0:03:27]} Bf5 {[%emt 0:02:39]} 11. Nh4 {[%emt 0:02:23]} Be4 {[%emt 0:04:28]} 12. Nc3 {[%emt 0:03:47]} Ne7 {[%emt 0:01:07]} 13. Nxe4 {[%emt 0:03:33]} Nxe4 {[%emt 0:00:14]} 14. Nf3 {[%emt 0:00:42]} Ng6 {[%emt 0:05:47]} 15. Re1 {[%emt 0:03:38]} Nf4 {[%emt 0:10:51]} 16. Bf1 {[%emt 0:01:02]} f5 {[%emt 0:09:59]} 17. Bc1 {[%emt 0:06:35]} Rf6 {[%emt 0:12:30]} 18. Ne5 {[%emt 0:04:38]} Ng6 {[%emt 0:01:02]} 19. f3 {[%emt 0:02:46]} Nxe5 {[%emt 0:03:50]} 20. fxe4 {[%emt 0:03:10]} fxe4 {[%emt 0:00:35]} 21. dxe5 {[%emt 0:01:23]} Bxe5 {[%emt 0:00:08]} 22. Rb1 {[%emt 0:00:20]} Qb6+ {[%emt 0:00:28]} 23. Be3 {[%emt 0:11:20]} d4 {[%emt 0:00:25]} 24. Bg5 {[%emt 0:04:08]} Rf5 {[%emt 0:02:04]} 25. Qg4 {[%emt 0:09:26]} Raf8 {[%emt 0:19:20]} 26. Rxe4 d3+ {[%emt 0:00:30]} 27. Be3 Qd6 {[%emt 0:00:30]} 28. Rxe5 Qxe5 {[%emt 0:00:30]} 29. Bd4 Qc7 {[%emt 0:00:30]} 30. Bxd3 Rf4 {[%emt 0:00:30]} 31. Qxe6+ Kh8 {[%emt 0:00:30]} 32. Be5 Qc5+ {[%emt 0:00:30]} 33. Kh2 Rf3 {[%emt 0:00:30]} 34. Bd6 Qc6 {[%emt 0:00:30]} 35. Be4 1-0

[Event "Seniors-LEM-65 Sachsen-Anhalt 2024"]
[Site "Magdeburg"]
[Date "2024.07.07"]
[Round "7.16"]
[White "Lehr, Thomas"]
[Black "Bauer, Burkhard"]
[Result "1/2-1/2"]
[ECO "B22"]
[WhiteElo "1954"]
[BlackElo "2043"]
[Annotator "RC"]
[PlyCount "33"]
[EventDate "2024.06.25"]
[EventType "swiss"]
[EventCountry "GER"]
[SourceTitle "playchess.com"]
[Source "ChessBase"]
[SourceQuality "1"]
[TimeControl "40/5400+30:1800+30"]

1. e4 {[%emt 0:00:03]} c5 {[%emt 0:00:24]} 2. c3 {[%emt 0:00:33]} d6 {[%emt 0:02:09]} 3. d4 {[%emt 0:00:41]} Nd7 {[%emt 0:00:36]} 4. Be3 {[%emt 0:04:02]} Qc7 {[%emt 0:00:29]} 5. Nd2 {[%emt 0:10:19]} Ngf6 {[%emt 0:01:28]} 6. Be2 {[%emt 0:08:33]} e5 {[%emt 0:01:26]} 7. d5 {[%emt 0:01:14]} Be7 {[%emt 0:00:14]} 8. g4 {[%emt 0:10:18]} Nf8 {[%emt 0:02:56]} 9. g5 {[%emt 0:28:31]} N6d7 {[%emt 0:00:47]} 10. Qc2 {[%emt 0:03:26]} Qd8 {[%emt 0:07:33]} 11. Ngf3 {[%emt 0:01:11]} Ng6 {[%emt 0:00:55]} 12. Rg1 {[%emt 0:07:50]} Ndf8 {[%emt 0:01:32]} 13. Bb5+ {[%emt 0:00:54]} Bd7 {[%emt 0:00:16]} 14. Qa4 {[%emt 0:00:24]} a6 {[%emt 0:00:39]} 15. Bxd7+ {[%emt 0:00:26]} Qxd7 {[%emt 0:00:02]} 16. Qxd7+ {[%emt 0:00:33]} Kxd7 {[%emt 0:00:02]} 17. Nf1 {[%emt 0:00:59]} 1/2-1/2

[Event "Seniors-LEM-65 Sachsen-Anhalt 2024"]
[Site "Magdeburg"]
[Date "2024.07.07"]
[Round "7.17"]
[White "Heise, Juergen"]
[Black "Kopp, Peter"]
[Result "1-0"]
[ECO "E60"]
[WhiteElo "1930"]
[BlackElo "2014"]
[Annotator "RC"]
[PlyCount "57"]
[EventDate "2024.06.25"]
[EventType "swiss"]
[EventCountry "GER"]
[SourceTitle "playchess.com"]
[Source "ChessBase"]
[SourceQuality "1"]
[TimeControl "40/5400+30:1800+30"]

1. b3 {[%emt 0:00:03]} d6 {[%emt 0:00:21]} 2. Bb2 {[%emt 0:00:05]} Nf6 {[%emt 0:00:11]} 3. e3 {[%emt 0:00:14]} g6 {[%emt 0:00:18]} 4. d4 {[%emt 0:01:34]} Bg7 {[%emt 0:00:06]} 5. Nf3 {[%emt 0:00:15]} O-O {[%emt 0:00:33]} 6. c4 {[%emt 0:00:49]} c6 {[%emt 0:00:25]} 7. Nc3 {[%emt 0:00:59]} Nbd7 {[%emt 0:00:17]} 8. Be2 {[%emt 0:00:59]} Re8 {[%emt 0:00:28]} 9. Qc2 {[%emt 0:01:07]} e5 {[%emt 0:00:44]} 10. O-O-O {[%emt 0:03:11]} a5 {[%emt 0:01:37]} 11. h4 {[%emt 0:02:02]} h5 {[%emt 0:02:56]} 12. Nh2 {[%emt 0:02:44]} Qe7 {[%emt 0:04:44]} 13. g4 {[%emt 0:03:45]} Nxg4 {[%emt 0:04:40]} 14. Nxg4 {[%emt 0:06:13]} hxg4 {[%emt 0:00:08]} 15. h5 {[%emt 0:00:55]} exd4 {[%emt 0:03:42]} 16. exd4 {[%emt 0:02:41]} Qg5+ {[%emt 0:01:22]} 17. Kb1 {[%emt 0:00:50]} gxh5 {[%emt 0:00:29]} 18. Ne4 {[%emt 0:05:02]} Qg6 {[%emt 0:01:44]} 19. Bd3 {[%emt 0:00:33]} f5 {[%emt 0:00:52]} 20. Ng3 {[%emt 0:02:20]} Nf6 {[%emt 0:02:05]} 21. Nxf5 {[%emt 0:02:10]} Bxf5 {[%emt 0:16:29]} 22. Bxf5 {[%emt 0:00:07]} Qf7 {[%emt 0:00:09]} 23. Bg6 {[%emt 0:05:20]} Qd7 {[%emt 0:00:07]} 24. Bxh5 {[%emt 0:07:00]} Nxh5 {[%emt 0:03:25]} 25. Rxh5 {[%emt 0:00:02]} Bf6 {[%emt 0:03:09]} 26. d5 {[%emt 0:02:22]} Qf7 {[%emt 0:06:46]} 27. Rf5 {[%emt 0:02:35]} Re5 {[%emt 0:01:39]} 28. Bxe5 {[%emt 0:00:55]} dxe5 {[%emt 0:00:02]} 29. Qe4 {[%emt 0:01:15]} 1-0

[Event "Seniors-LEM-65 Sachsen-Anhalt 2024"]
[Site "Magdeburg"]
[Date "2024.07.07"]
[Round "7.18"]
[White "Funke, Arnold"]
[Black "Waltenberger, Udo"]
[Result "1/2-1/2"]
[ECO "D00"]
[WhiteElo "1902"]
[BlackElo "1993"]
[Annotator "NA RC"]
[PlyCount "57"]
[EventDate "2024.06.25"]
[EventType "swiss"]
[EventCountry "GER"]
[SourceTitle "playchess.com"]
[Source "ChessBase"]
[SourceQuality "1"]
[TimeControl "40/5400+30:1800+30"]

1. d4 {[%emt 0:00:06]} Nf6 {[%emt 0:00:02]} 2. Nc3 {[%emt 0:00:09]} d5 {[%emt 0:00:02]} 3. e4 {[%emt 0:00:15]} dxe4 {[%emt 0:00:09]} 4. f3 {[%emt 0:00:08]} exf3 {[%emt 0:00:02]} 5. Nxf3 {[%emt 0:01:13]} g6 {[%emt 0:00:07]} 6. h3 {[%emt 0:01:07] D00: 1 d4 d5: Unusual lines.} Bg7 {[%emt 0:00:26]} 7. Bf4 {[%emt 0:00:09]} O-O {[%emt 0:02:17]} 8. Qd2 {[%emt 0:00:35]} Nd5 {[%emt 0:10:18]} 9. Bh6 {[%emt 0:06:44]} Nxc3 {[%emt 0:00:21]} 10. bxc3 {[%emt 0:00:08]} e6 {[%emt 0:04:22]} 11. Bd3 {[%emt 0:03:10]} c5 {[%emt 0:02:34]} 12. h4 {[%emt 0:02:51]} Bxh6 {[%emt 0:00:57]} (12... cxd4 13. Bxg7 Kxg7 14. h5 dxc3 15. Qf4) (12... f6 $11) 13. Qxh6 {[%emt 0:02:29]} Qf6 {[%emt 0:00:04]} 14. h5 {[%emt 0:02:12]} Qg7 {[%emt 0:00:33]} 15. Qf4 {[%emt 0:04:22]} cxd4 {[%emt 0:01:18]} 16. O-O-O {[%emt 0:01:48]} (16. h6 $14 Qh8 17. cxd4) 16... Nd7 {[%emt 0:01:02]} 17. cxd4 {[%emt 0:00:54]} Nf6 {[%emt 0:00:42]} 18. hxg6 {[%emt 0:00:19]} fxg6 {[%emt 0:02:24]} 19. Ne5 {[%emt 0:05:45]} b6 {[%emt 0:04:29]} 20. Rh2 {[%emt 0:01:33]} Bb7 {[%emt 0:04:45]} 21. Rdh1 {[%emt 0:07:22]} Rae8 {[%emt 0:08:04]} 22. Qg5 $2 {[%emt 0:08:10]} ({White should try} 22. Qe3 $18) 22... Be4 {[%emt 0:03:42]} 23. Qe3 {[%emt 0:04:39]} Bxd3 {[%emt 0:03:35]} 24. Qxd3 {[%emt 0:00:32]} Re7 {[%emt 0:05:00]} 25. g4 {[%emt 0:01:32]} Rc7 {[%emt 0:06:44]} 26. g5 {[%emt 0:07:01]} Nh5 {[%emt 0:02:42]} 27. Ng4 $15 {[%emt 0:05:14]} (27. Qe3 $1 $11) 27... Kh8 {[%emt 0:09:43]} 28. Kb1 {[%emt 0:04:29]} Rf5 29. Qe3 {[%emt 0:00:30]} 1/2-1/2

[Event "Seniors-LEM-65 Sachsen-Anhalt 2024"]
[Site "Magdeburg"]
[Date "2024.07.07"]
[Round "7.19"]
[White "Krieg, Peter"]
[Black "Christen, Pierre"]
[Result "1-0"]
[ECO "B10"]
[WhiteElo "1920"]
[BlackElo "1946"]
[Annotator "RC"]
[PlyCount "63"]
[EventDate "2024.06.25"]
[EventType "swiss"]
[EventCountry "GER"]
[SourceTitle "playchess.com"]
[Source "ChessBase"]
[SourceQuality "1"]
[TimeControl "40/5400+30:1800+30"]

1. e4 {[%emt 0:00:03]} c6 {[%emt 0:00:07]} 2. d3 {[%emt 0:00:17]} d5 {[%emt 0:01:07]} 3. Nf3 {[%emt 0:00:06]} dxe4 {[%emt 0:01:04]} 4. Ng5 {[%emt 0:00:06]} Nf6 {[%emt 0:01:00]} 5. Nc3 {[%emt 0:00:28]} Bf5 {[%emt 0:02:31]} 6. dxe4 {[%emt 0:03:18]} Qxd1+ {[%emt 0:00:26]} 7. Kxd1 {[%emt 0:00:09]} Bg6 {[%emt 0:00:19]} 8. f3 {[%emt 0:01:24]} h6 {[%emt 0:00:47]} 9. Nh3 {[%emt 0:00:15]} Nbd7 {[%emt 0:01:58]} 10. Be3 {[%emt 0:00:51]} e6 {[%emt 0:02:03]} 11. Bd3 {[%emt 0:02:13]} Bb4 {[%emt 0:07:04]} 12. Ke2 {[%emt 0:04:59]} O-O {[%emt 0:05:22]} 13. g4 {[%emt 0:02:01]} Kh7 {[%emt 0:06:28]} 14. Nf4 {[%emt 0:02:03]} Ne5 {[%emt 0:00:44]} 15. h4 {[%emt 0:00:30]} h5 {[%emt 0:02:01]} 16. Bd4 {[%emt 0:03:09]} Bd6 {[%emt 0:02:49]} 17. Rag1 {[%emt 0:06:46]} Nxf3 {[%emt 0:20:57]} 18. Kxf3 {[%emt 0:06:03]} hxg4+ {[%emt 0:01:53]} 19. Rxg4 {[%emt 0:03:57]} Nxg4 {[%emt 0:01:00]} 20. Kxg4 {[%emt 0:00:08]} f5+ {[%emt 0:00:25]} 21. exf5 {[%emt 0:04:35]} Bxf5+ {[%emt 0:03:23]} 22. Bxf5+ {[%emt 0:01:49]} exf5+ {[%emt 0:00:13]} 23. Kf3 {[%emt 0:01:39]} Rad8 {[%emt 0:02:46]} 24. Ne6 {[%emt 0:00:41]} c5 {[%emt 0:01:38]} 25. Nxf8+ {[%emt 0:01:40]} Rxf8 {[%emt 0:00:02]} 26. Bf2 {[%emt 0:01:24]} a6 {[%emt 0:00:52]} 27. Rd1 {[%emt 0:01:15]} Rf6 {[%emt 0:01:54]} 28. Bg3 {[%emt 0:02:21]} f4 {[%emt 0:02:21]} 29. Bf2 {[%emt 0:00:11]} Bf8 {[%emt 0:03:47]} 30. Ne4 {[%emt 0:00:55]} Rc6 {[%emt 0:00:46]} 31. Rd8 {[%emt 0:06:28]} Kg8 {[%emt 0:05:49]} 32. Bxc5 {[%emt 0:44:46]} 1-0

[Event "Seniors-LEM-65 Sachsen-Anhalt 2024"]
[Site "Magdeburg"]
[Date "2024.07.07"]
[Round "7.24"]
[White "Mikolajewski, Armin"]
[Black "Bielfeldt, Michael"]
[Result "1-0"]
[ECO "D46"]
[WhiteElo "1961"]
[BlackElo "1810"]
[Annotator "RC"]
[PlyCount "47"]
[EventDate "2024.06.25"]
[EventType "swiss"]
[EventCountry "GER"]
[SourceTitle "playchess.com"]
[Source "ChessBase"]
[SourceQuality "1"]
[TimeControl "40/5400+30:1800+30"]

1. d4 {[%emt 0:00:21]} d5 {[%emt 0:00:12]} 2. c4 {[%emt 0:00:09]} c6 {[%emt 0:00:07]} 3. Nc3 {[%emt 0:00:22]} e6 {[%emt 0:00:44]} 4. e3 {[%emt 0:00:22]} Bd6 {[%emt 0:00:38]} 5. Nf3 {[%emt 0:00:12]} Nf6 {[%emt 0:00:35]} 6. Bd3 {[%emt 0:00:16]} Nbd7 {[%emt 0:01:47]} 7. e4 {[%emt 0:06:18]} dxe4 {[%emt 0:03:30]} 8. Nxe4 {[%emt 0:01:38]} Nxe4 {[%emt 0:00:59]} 9. Bxe4 {[%emt 0:00:10]} Nf6 {[%emt 0:02:14]} 10. Bc2 {[%emt 0:00:13]} h6 {[%emt 0:01:45]} 11. O-O {[%emt 0:01:04]} O-O {[%emt 0:00:05]} 12. Re1 {[%emt 0:02:13]} Qc7 {[%emt 0:01:59]} 13. Ne5 {[%emt 0:05:19]} c5 {[%emt 0:06:20]} 14. Qd3 {[%emt 0:06:26]} cxd4 {[%emt 0:07:23]} 15. Ng4 {[%emt 0:00:25]} Rd8 {[%emt 0:05:50]} 16. Nxf6+ {[%emt 0:02:50]} gxf6 {[%emt 0:00:02]} 17. Qh7+ {[%emt 0:01:33]} Kf8 {[%emt 0:00:15]} 18. Bxh6+ {[%emt 0:00:12]} Ke7 {[%emt 0:00:23]} 19. Bg6 {[%emt 0:01:34]} Bxh2+ {[%emt 0:06:24]} 20. Kh1 {[%emt 0:01:26]} Be5 {[%emt 0:00:08]} 21. f4 {[%emt 0:07:18]} Bxf4 {[%emt 0:01:24]} 22. Qxf7+ {[%emt 0:00:19]} Kd6 {[%emt 0:01:51]} 23. Bxf4+ {[%emt 0:00:33]} e5 {[%emt 0:00:43]} 24. Qxf6+ {[%emt 0:00:48]} 1-0

[Event "Seniors-LEM-65 Sachsen-Anhalt 2024"]
[Site "Magdeburg"]
[Date "2024.07.07"]
[Round "7.25"]
[White "Domsgen, Bernd"]
[Black "Boettcher, Frank"]
[Result "1-0"]
[ECO "B01"]
[WhiteElo "1963"]
[BlackElo "1848"]
[Annotator "RC"]
[PlyCount "99"]
[EventDate "2024.06.25"]
[EventType "swiss"]
[EventCountry "GER"]
[SourceTitle "playchess.com"]
[Source "ChessBase"]
[SourceQuality "1"]
[TimeControl "40/5400+30:1800+30"]

1. e4 {[%emt 0:00:02]} d5 {[%emt 0:00:14]} 2. exd5 {[%emt 0:02:15]} Nf6 {[%emt 0:00:06]} 3. d4 {[%emt 0:02:06]} Nxd5 {[%emt 0:00:37]} 4. c4 {[%emt 0:00:44]} Nb6 {[%emt 0:00:05]} 5. Be3 {[%emt 0:01:56]} g6 {[%emt 0:00:09]} 6. Nf3 {[%emt 0:00:16]} Bg7 {[%emt 0:00:08]} 7. Be2 {[%emt 0:05:29]} Nc6 {[%emt 0:02:08]} 8. Nc3 {[%emt 0:00:34]} Bg4 {[%emt 0:00:22]} 9. O-O {[%emt 0:08:37]} O-O {[%emt 0:00:38]} 10. c5 {[%emt 0:02:05]} Nd5 {[%emt 0:04:01]} 11. Qd2 {[%emt 0:00:11]} e5 {[%emt 0:08:02]} 12. Rad1 {[%emt 0:12:36]} Bxf3 {[%emt 0:07:58]} 13. Bxf3 {[%emt 0:00:15]} exd4 {[%emt 0:00:51]} 14. Nxd5 {[%emt 0:03:00]} dxe3 {[%emt 0:02:11]} 15. Qxe3 {[%emt 0:00:25]} Qc8 {[%emt 0:07:00]} 16. b4 {[%emt 0:00:11]} Re8 {[%emt 0:01:21]} 17. Qd2 {[%emt 0:01:14]} Ne5 {[%emt 0:08:43]} 18. Rfe1 {[%emt 0:03:03]} c6 {[%emt 0:01:13]} 19. Ne3 {[%emt 0:03:34]} Nxf3+ {[%emt 0:05:25]} 20. gxf3 {[%emt 0:00:31]} Qc7 {[%emt 0:02:54]} 21. Nc4 {[%emt 0:00:29]} Bf8 {[%emt 0:05:32]} 22. Rxe8 {[%emt 0:13:20]} Rxe8 {[%emt 0:00:34]} 23. Nd6 {[%emt 0:00:27]} Rd8 {[%emt 0:04:14]} 24. Kg2 {[%emt 0:00:29]} Bxd6 {[%emt 0:04:24]} 25. cxd6 {[%emt 0:00:02]} Qd7 {[%emt 0:00:09]} 26. Qe3 {[%emt 0:02:00]} a6 {[%emt 0:00:50]} 27. Qe7 {[%emt 0:01:54]} Kg7 {[%emt 0:01:43]} 28. h4 h5 {[%emt 0:00:30]} 29. Rd4 Kg8 {[%emt 0:00:30]} 30. Qf6 Re8 {[%emt 0:00:30]} 31. Qf4 Re6 {[%emt 0:00:30]} 32. Kf1 Kg7 {[%emt 0:00:30]} 33. Qd2 Re5 {[%emt 0:00:30]} 34. Qc3 Kg8 {[%emt 0:00:30]} 35. f4 Re6 {[%emt 0:00:30]} 36. Qd3 Rf6 {[%emt 0:00:30]} 37. Kg2 Kg7 {[%emt 0:00:30]} 38. f3 Rf5 {[%emt 0:00:30]} 39. Qe4 Kf8 {[%emt 0:00:30]} 40. Kg3 Rb5 {[%emt 0:00:30]} 41. a4 Rf5 {[%emt 0:30:30]} 42. Rd1 b5 {[%emt 0:00:30]} 43. axb5 Rxb5 {[%emt 0:00:30]} 44. Qd4 Kg8 {[%emt 0:00:30]} 45. Qf6 Rb8 {[%emt 0:00:30]} 46. Qd4 Rd8 {[%emt 0:00:30]} 47. Kf2 Re8 {[%emt 0:00:30]} 48. Re1 Rd8 {[%emt 0:00:30]} 49. Qf6 Qxd6 {[%emt 0:00:30]} 50. Re8+ 1-0

[Event "Seniors-LEM-65 Sachsen-Anhalt 2024"]
[Site "Magdeburg"]
[Date "2024.07.07"]
[Round "7.27"]
[White "Krien, Hartmut"]
[Black "Hauke, Hans"]
[Result "1/2-1/2"]
[ECO "B01"]
[WhiteElo "1928"]
[BlackElo "1824"]
[Annotator "RC"]
[PlyCount "48"]
[EventDate "2024.06.25"]
[EventType "swiss"]
[EventCountry "GER"]
[SourceTitle "playchess.com"]
[Source "ChessBase"]
[SourceQuality "1"]
[TimeControl "40/5400+30:1800+30"]

1. e4 {[%emt 0:00:02]} d5 {[%emt 0:00:19]} 2. exd5 {[%emt 0:00:20]} Nf6 {[%emt 0:00:11]} 3. d4 {[%emt 0:00:17]} Qxd5 {[%emt 0:00:18]} 4. c4 {[%emt 0:01:35]} Qe4+ {[%emt 0:01:13]} 5. Be3 {[%emt 0:00:46]} e5 {[%emt 0:01:30]} 6. Nc3 {[%emt 0:04:32]} Bb4 {[%emt 0:00:08]} 7. Qa4+ {[%emt 0:17:02]} Nc6 {[%emt 0:00:09]} 8. O-O-O {[%emt 0:00:28]} Bxc3 {[%emt 0:01:18]} 9. bxc3 {[%emt 0:00:19]} exd4 {[%emt 0:07:43]} 10. cxd4 {[%emt 0:03:27]} O-O {[%emt 0:00:17]} 11. Nf3 {[%emt 0:02:01]} Qe7 {[%emt 0:08:10]} 12. Bd3 {[%emt 0:09:29]} Qb4 {[%emt 0:04:09]} 13. Qxb4 {[%emt 0:00:36]} Nxb4 {[%emt 0:00:06]} 14. Bb1 {[%emt 0:00:29]} Bg4 {[%emt 0:01:50]} 15. d5 {[%emt 0:06:16]} Rfe8 {[%emt 0:03:06]} 16. h3 {[%emt 0:07:52]} Bh5 {[%emt 0:00:47]} 17. a3 {[%emt 0:03:33]} Na6 {[%emt 0:00:15]} 18. Bd4 {[%emt 0:05:07]} Ne4 {[%emt 0:02:50]} 19. g4 {[%emt 0:01:49]} Bg6 {[%emt 0:00:10]} 20. Nh4 {[%emt 0:03:31]} Nac5 {[%emt 0:05:59]} 21. Bc2 {[%emt 0:02:04]} b6 {[%emt 0:02:06]} 22. Rhg1 {[%emt 0:02:03]} Nd6 {[%emt 0:00:55]} 23. Nxg6 {[%emt 0:01:27]} hxg6 {[%emt 0:00:15]} 24. Bxc5 {[%emt 0:00:30]} bxc5 {[%emt 0:00:04]} 1/2-1/2

[Event "Seniors-LEM-65 Sachsen-Anhalt 2024"]
[Site "Magdeburg"]
[Date "2024.07.07"]
[Round "7.28"]
[White "Niebuhr, Gerd"]
[Black "Gismann, Juergen"]
[Result "1-0"]
[ECO "A41"]
[WhiteElo "1917"]
[BlackElo "1813"]
[Annotator "RC"]
[PlyCount "45"]
[EventDate "2024.06.25"]
[EventType "swiss"]
[EventCountry "GER"]
[SourceTitle "playchess.com"]
[Source "ChessBase"]
[SourceQuality "1"]
[TimeControl "40/5400+30:1800+30"]

1. d4 {[%emt 0:00:08]} d6 {[%emt 0:00:24]} 2. Nf3 {[%emt 0:01:19]} g6 {[%emt 0:00:18]} 3. c4 {[%emt 0:00:22]} Nd7 {[%emt 0:00:52]} 4. Nc3 {[%emt 0:00:45]} a6 {[%emt 0:00:16]} 5. e4 {[%emt 0:02:49]} Bg7 {[%emt 0:00:19]} 6. Be3 {[%emt 0:00:50]} Ngf6 {[%emt 0:02:11]} 7. h3 {[%emt 0:00:51]} O-O {[%emt 0:00:19]} 8. Be2 {[%emt 0:00:15]} e5 {[%emt 0:04:35]} 9. O-O {[%emt 0:02:01]} exd4 {[%emt 0:02:31]} 10. Nxd4 {[%emt 1:26:10]} Re8 {[%emt 1:23:45]} 11. Qc2 {[%emt 0:00:00]} Nc5 {[%emt 0:00:00]} 12. f3 {[%emt 0:00:00]} Ne6 {[%emt 0:00:00]} 13. Rad1 {[%emt 0:00:00]} Nxd4 {[%emt 0:00:00]} 14. Bxd4 {[%emt 0:00:00]} Nh5 {[%emt 0:00:00]} 15. Bxg7 {[%emt 0:00:00]} Kxg7 {[%emt 0:00:00]} 16. f4 {[%emt 0:00:00]} Ng3 {[%emt 0:00:00]} 17. Rf3 {[%emt 0:00:00]} Qh4 {[%emt 0:00:00]} 18. Qd3 {[%emt 0:00:00]} Nxe2+ {[%emt 0:00:00]} 19. Nxe2 {[%emt 0:00:00]} Qe7 {[%emt 0:00:00]} 20. Nc3 {[%emt 0:00:00]} f5 {[%emt 0:00:00]} 21. Nd5 {[%emt 0:00:00]} Qxe4 {[%emt 0:00:00]} 22. Qc3+ {[%emt 0:00:00]} Kh6 {[%emt 0:00:00]} 23. Re3 {[%emt 0:00:00]} 1-0

[Event "Seniors-LEM-65 Sachsen-Anhalt 2024"]
[Site "Magdeburg"]
[Date "2024.07.07"]
[Round "7.29"]
[White "Kluever, Horst"]
[Black "Costello, Colin A"]
[Result "0-1"]
[ECO "C50"]
[WhiteElo "1850"]
[BlackElo "1911"]
[Annotator "RC"]
[PlyCount "66"]
[EventDate "2024.06.25"]
[EventType "swiss"]
[EventCountry "GER"]
[SourceTitle "playchess.com"]
[Source "ChessBase"]
[SourceQuality "1"]
[TimeControl "40/5400+30:1800+30"]

1. e4 {[%emt 0:00:03]} e5 {[%emt 0:00:12]} 2. Bc4 {[%emt 0:00:10]} Nf6 {[%emt 0:01:45]} 3. Nc3 {[%emt 0:00:11]} Nc6 {[%emt 0:00:30]} 4. Nf3 {[%emt 0:00:26]} Bc5 {[%emt 0:01:03]} 5. O-O {[%emt 0:02:34]} O-O {[%emt 0:00:52]} 6. h3 {[%emt 0:00:08]} d6 {[%emt 0:00:25]} 7. d3 {[%emt 0:01:08]} Be6 {[%emt 0:02:06]} 8. Bb3 {[%emt 0:02:11]} Qe7 {[%emt 0:05:41]} 9. Be3 {[%emt 0:01:50]} Bb6 {[%emt 0:03:22]} 10. Nd5 {[%emt 0:02:28]} Bxd5 {[%emt 0:01:45]} 11. exd5 {[%emt 0:00:14]} Na5 {[%emt 0:03:43]} 12. c4 {[%emt 0:00:45]} c6 {[%emt 0:04:18]} 13. Bg5 {[%emt 0:06:38]} cxd5 {[%emt 0:02:35]} 14. cxd5 {[%emt 0:00:27]} Nxb3 {[%emt 0:00:29]} 15. Qxb3 {[%emt 0:00:27]} h6 {[%emt 0:00:26]} 16. Bxf6 {[%emt 0:00:19]} Qxf6 {[%emt 0:00:07]} 17. a4 {[%emt 0:00:36]} Bc5 {[%emt 0:09:38]} 18. Nd2 {[%emt 0:07:59]} Qe7 {[%emt 0:01:31]} 19. Ne4 {[%emt 0:00:35]} Bd4 {[%emt 0:00:52]} 20. Nd2 {[%emt 0:02:15]} f5 {[%emt 0:02:33]} 21. Nf3 {[%emt 0:01:39]} Bc5 {[%emt 0:01:06]} 22. Rae1 {[%emt 0:03:49]} Bb6 {[%emt 0:01:24]} 23. Qb4 {[%emt 0:02:25]} Rae8 {[%emt 0:03:21]} 24. Qh4 {[%emt 0:01:52]} Qf7 {[%emt 0:01:59]} 25. b4 {[%emt 0:01:43]} Qxd5 {[%emt 0:05:38]} 26. Qc4 {[%emt 0:00:32]} Qxc4 {[%emt 0:00:08]} 27. dxc4 {[%emt 0:00:08]} e4 {[%emt 0:00:45]} 28. Nh4 {[%emt 0:00:47]} g5 {[%emt 0:01:52]} 29. a5 {[%emt 0:05:59]} Bc7 {[%emt 0:00:43]} 30. Ng6 {[%emt 0:01:06]} Rf6 {[%emt 0:00:13]} 31. f3 {[%emt 0:08:44]} Rxg6 {[%emt 0:00:23]} 32. fxe4 {[%emt 0:00:16]} Rxe4 {[%emt 0:01:20]} 33. Rxe4 {[%emt 0:01:53]} fxe4 {[%emt 0:00:09]} 0-1

[Event "Seniors-LEM-65 Sachsen-Anhalt 2024"]
[Site "Magdeburg"]
[Date "2024.07.07"]
[Round "7.30"]
[White "Neubauer, Uwe"]
[Black "Kynast, Reinhard"]
[Result "1/2-1/2"]
[ECO "A30"]
[WhiteElo "1827"]
[BlackElo "1901"]
[Annotator "NA RC"]
[PlyCount "64"]
[EventDate "2024.06.25"]
[EventType "swiss"]
[EventCountry "GER"]
[SourceTitle "playchess.com"]
[Source "ChessBase"]
[SourceQuality "1"]
[TimeControl "40/5400+30:1800+30"]

1. Nf3 {[%emt 0:00:05]} c5 {[%emt 0:00:09]} 2. c4 {[%emt 0:00:17]} Nf6 {[%emt 0:00:07]} 3. g3 {[%emt 0:00:16]} d5 {[%emt 0:00:09]} 4. Nc3 {[%emt 0:01:15]} d4 {[%emt 0:00:47]} 5. Nb5 {[%emt 0:01:44]} a6 {[%emt 0:00:46]} 6. Na3 {[%emt 0:00:17] A30: Symmetrical English: Double Fianchetto and Hedgehog.} Nc6 {[%emt 0:00:18]} 7. d3 {[%emt 0:00:42]} e5 {[%emt 0:00:29]} 8. e4 {[%emt 0:02:39]} Be7 {[%emt 0:02:03]} 9. Bg2 {[%emt 0:00:39]} O-O {[%emt 0:00:42]} 10. Nc2 {[%emt 0:00:50]} Bg4 {[%emt 0:01:08]} 11. a3 {[%emt 0:01:28]} Nd7 {[%emt 0:06:26]} 12. Bd2 {[%emt 0:01:48]} f5 {[%emt 0:05:04]} 13. h3 {[%emt 0:06:32]} Bh5 {[%emt 0:01:14]} 14. exf5 {[%emt 0:00:42]} e4 {[%emt 0:03:35]} 15. dxe4 {[%emt 0:01:40]} Nde5 {[%emt 0:00:11]} 16. g4 {[%emt 0:01:41]} Nd3+ {[%emt 0:00:44]} 17. Kf1 {[%emt 0:01:21]} Bf7 {[%emt 0:01:54]} 18. b3 {[%emt 0:02:25]} b5 {[%emt 0:00:40]} 19. cxb5 {[%emt 0:04:17]} axb5 {[%emt 0:00:18]} 20. Nfe1 {[%emt 0:04:51]} Nxe1 {[%emt 0:14:35]} 21. Nxe1 {[%emt 1:05:31]} Ne5 {[%emt 0:59:41]} 22. f4 {[%emt 0:00:00]} Nc6 {[%emt 0:00:00]} 23. e5 {[%emt 0:00:00]} Bd5 {[%emt 0:00:00]} 24. Nf3 {[%emt 0:00:00]} c4 {[%emt 0:00:00]} 25. bxc4 {[%emt 0:00:00]} bxc4 {[%emt 0:00:00]} 26. Bc1 {[%emt 0:00:00]} Bc5 {[%emt 0:00:00]} 27. e6 {[%emt 0:00:00]} Be4 {[%emt 0:00:00]} 28. Kf2 {[%emt 0:00:00]} Qd5 {[%emt 0:00:00]} 29. Kg3 {[%emt 0:00:00]} Rab8 $11 {[%emt 0:00:00]} 30. Rf1 {[%emt 0:00:00]} Rb3 {[%emt 0:00:00]} 31. Kh2 {[%emt 0:00:00]} c3 {[%emt 0:00:00]} 32. Ne1 {[%emt 0:00:00]} Bxg2 1/2-1/2